Workbook

Sheet Mode d'emploi
I4: EVALUATION DU JEU
C5: MODE D'EMPLOI
C7: NOTE: | D7: Le travail avec l’ordinateur et/ou la version imprimée des documents «Budget mensuel des ménages» et «Comparaison
D8: des budgets» est recommandé mais n’est pas une obligation.
C10: «Budget mensuel des ménages» | E10: A l’aide de cet onglet, le budget mensuel peut être établi et ensuite comparé aux dépenses
E11: moyennes d’un ménage suisse.
E12: 1. Reportez, dans la colonne verte, vos propositions de répartition de dépenses pour le ménage
E13: qui vous a été attribué.
E14: 2. Dans la colonne grise se trouve le ménage suisse comparatif. Choisissez dans la liste déroulante
E15: le ménage type adéquat.
E16: 3. Le pourcentage indiqué sous «Concordance» permet de voir à quel point votre proposition
E17: correspond à la moyenne suisse.
C19: «Comparaison des budgets» | E19: Cet onglet permet de comparer la répartition des dépenses (par poste budgétaire) de deux
E20: ménages suisses différents. Concrètement, les recettes, les dépenses (impôts, santé, etc.) et
E21: le solde (épargne/dette) peuvent ainsi être comparés. Pour choisir un ménage type, cliquez sur
E22: le nom souhaité dans la liste déroulante sous «Budget 1» et «Budget 2».
C24: «Budget mensuel ménage_p» | E24: Cet onglet, en tant que document imprimé, peut servir de document de travail. Dans la colonne verte,
E25: vous pouvez insérer vos propositions de planification budgétaire pour le ménage qui vous a été
E26: attribué.
C28: «Comparaison budget ménage_p» | E28: Cet onglet, en tant que document imprimé, peut servir de document de travail. Il donne un aperçu
E29: des revenus, de la structure des dépenses et du solde des 10 profils de ménages.

Sheet Budget mensuel des ménages
D3: Proposition | G3: Moyenne suisse | K3: Concordance
D4: Elève | G4: Office fédéral de la statistique | K4: =1-SUM(I10:I31) -> 1
A7: Recettes | C7: =Données!$B$12 -> Revenus disponibles | E7: =IF($D$7,SUM(D7)/$D$7,0) -> 0 | G7: =INDEX(Données!$D12:$N12,1,Données!$A$56) -> 0 | H7: =IF($G$7,SUM(G7:G7)/$G$7,0) -> 0
B8: =Données!$A13 -> 0
B9: =Données!$A9 -> 0
A10: Dépenses | B10: =Données!$A15 -> 1 | C10: =Données!$B15 -> Impôts | E10: =IF($D$7,SUM(D10)/$D$7,0) -> 0 | G10: =ABS(INDEX(Données!$D15:$N15,1,Données!$A$56)) -> 0 | H10: =IF($G$7,SUM(G10:G10)/$G$7,0) -> 0 | I10: =ABS(H10-E10) -> 0 | J10: Impôts fédéraux, cantonaux et communaux, taxes officielles
B11: =Données!$A16 -> 0 | C11: =Données!$B16 -> 0
B12: =Données!$A17 -> 2 | C12: =Données!$B17 -> Santé | E12: =IF($D$7,SUM(D12)/$D$7,0) -> 0 | G12: =ABS(INDEX(Données!$D17:$N17,1,Données!$A$56)) -> 0 | H12: =IF($G$7,SUM(G12:G12)/$G$7,0) -> 0 | I12: =ABS(H12-E12) -> 0 | J12: Primes d’assurances, consultations médicales, médicaments
B13: =Données!$A18 -> 0 | C13: =Données!$B18 -> 0
B14: =Données!$A19 -> 3 | C14: =Données!$B19 -> Assistance et cadeaux | E14: =IF($D$7,SUM(D14)/$D$7,0) -> 0 | G14: =ABS(INDEX(Données!$D19:$N19,1,Données!$A$56)) -> 0 | H14: =IF($G$7,SUM(G14:G14)/$G$7,0) -> 0 | I14: =ABS(H14-E14) -> 0 | J14: Cadeaux, dons, pensions alimentaires, contributions de soutien
B15: =Données!$A20 -> 0 | C15: =Données!$B20 -> 0
B16: =Données!$A21 -> 4 | C16: =Données!$B21 -> Logement | E16: =IF($D$7,SUM(D16)/$D$7,0) -> 0 | G16: =ABS(INDEX(Données!$D21:$N21,1,Données!$A$56)) -> 0 | H16: =IF($G$7,SUM(G16:G16)/$G$7,0) -> 0 | I16: =ABS(H16-E16) -> 0 | J16: Logement, énergie
B17: =Données!$A22 -> 0 | C17: =Données!$B22 -> 0
B18: =Données!$A23 -> 5 | C18: =Données!$B23 -> Alimentation | E18: =IF($D$7,SUM(D18)/$D$7,0) -> 0 | G18: =ABS(INDEX(Données!$D23:$N23,1,Données!$A$56)) -> 0 | H18: =IF($G$7,SUM(G18:G18)/$G$7,0) -> 0 | I18: =ABS(H18-E18) -> 0 | J18: Nourriture, boissons
B19: =Données!$A24 -> 0 | C19: =Données!$B24 -> 0
B20: =Données!$A25 -> 6 | C20: =Données!$B25 -> Habillement et soins corporels | E20: =IF($D$7,SUM(D20)/$D$7,0) -> 0 | G20: =ABS(INDEX(Données!$D25:$N25,1,Données!$A$56)) -> 0 | H20: =IF($G$7,SUM(G20:G20)/$G$7,0) -> 0 | I20: =ABS(H20-E20) -> 0 | J20: Vêtements, chaussures, produits d’hygiène, coiffeur
B21: =Données!$A26 -> 0 | C21: =Données!$B26 -> 0
B22: =Données!$A27 -> 7 | C22: =Données!$B27 -> Ménage et assurance vie | E22: =IF($D$7,SUM(D22)/$D$7,0) -> 0 | G22: =ABS(INDEX(Données!$D27:$N27,1,Données!$A$56)) -> 0 | H22: =IF($G$7,SUM(G22:G22)/$G$7,0) -> 0 | I22: =ABS(H22-E22) -> 0 | J22: Mobilier, équipement du ménage, assurances
B23: =Données!$A28 -> 0 | C23: =Données!$B28 -> 0
B24: =Données!$A29 -> 8 | C24: =Données!$B29 -> Mobilité | E24: =IF($D$7,SUM(D24)/$D$7,0) -> 0 | G24: =ABS(INDEX(Données!$D29:$N29,1,Données!$A$56)) -> 0 | H24: =IF($G$7,SUM(G24:G24)/$G$7,0) -> 0 | I24: =ABS(H24-E24) -> 0 | J24: Transports privés et transports en commun
B25: =Données!$A30 -> 0 | C25: =Données!$B30 -> 0
B26: =Données!$A31 -> 9 | C26: =Données!$B31 -> Communication et appareils électroniques | E26: =IF($D$7,SUM(D26)/$D$7,0) -> 0 | G26: =ABS(INDEX(Données!$D31:$N31,1,Données!$A$56)) -> 0 | H26: =IF($G$7,SUM(G26:G26)/$G$7,0) -> 0 | I26: =ABS(H26-E26) -> 0 | J26: Téléphonie, Internet, TV, ordinateur
B27: =Données!$A32 -> 0 | C27: =Données!$B32 -> 0
B28: =Données!$A33 -> 10 | C28: =Données!$B33 -> Loisirs et formation | E28: =IF($D$7,SUM(D28)/$D$7,0) -> 0 | G28: =ABS(INDEX(Données!$D33:$N33,1,Données!$A$56)) -> 0 | H28: =IF($G$7,SUM(G28:G28)/$G$7,0) -> 0 | I28: =ABS(H28-E28) -> 0 | J28: Sorties, vacances, hobbys, formation
B29: =Données!$A34 -> 0
B30: =Données!$A35 -> 0
A31: Montant restant | C31: Epargne/Dette | D31: =D7-SUM(D10:D28) -> 0 | E31: =IF($D$7,SUM(D31)/$D$7,0) -> 0 | G31: =INDEX(Données!$D36:$N36,1,Données!$A$56) -> 0 | H31: =IF($G$7,SUM(G31:G31)/$G$7,0) -> 0 | I31: =ABS(H31-E31) -> 0

Sheet Comparaison des budgets
D3: Moyenne suisse
D4: Office fédéral de la statistique
B7: Budget 1 | K7: Recettes | M7: =INDEX(Données!$D12:$N12,1,Données!$A$58) -> 2780 | P7: Montant restant | S7: =INDEX(Données!$D36:$N36,1,Données!$A$58) -> -730
B9: Budget 2 | M9: =INDEX(Données!$D12:$N12,1,Données!$A$59) -> 5820 | S9: =INDEX(Données!$D36:$N36,1,Données!$A$59) -> 750
B11: =Données!$A9 -> 0
A12: Dépenses
C15: 1 Impôts | G15: 2 Santé | K15: 3 Assistance et cadeaux | O15: 4 Logement | S15: 5 Alimentation
C16: ((Icon)) | G16: ((Icon)) | K16: ((Icon)) | O16: ((Icon)) | S16: ((Icon))
C17: =INDEX(Données!$D15:$N15,1,Données!$A$58) -> -290 | G17: =INDEX(Données!$D17:$N17,1,Données!$A$58) -> -520 | K17: =INDEX(Données!$D19:$N19,1,Données!$A$58) -> -130 | O17: =INDEX(Données!$D21:$N21,1,Données!$A$58) -> -1040 | S17: =INDEX(Données!$D23:$N23,1,Données!$A$58) -> -320
C19: =INDEX(Données!$D15:$N15,1,Données!$A$59) -> -640 | G19: =INDEX(Données!$D17:$N17,1,Données!$A$59) -> -490 | K19: =INDEX(Données!$D19:$N19,1,Données!$A$59) -> -290 | O19: =INDEX(Données!$D21:$N21,1,Données!$A$59) -> -1240 | S19: =INDEX(Données!$D23:$N23,1,Données!$A$59) -> -340
C23: 6 Habillement et | G23: 7 Ménage et assurance-vie | K23: 8 Mobilité | O23: 9 Communication et | S23: 10 Loisirs et formation
C24: soins corporels | O24: appareils électroniques
C25: ((Icon)) | G25: ((Icon)) | K25: ((Icon)) | O25: ((Icon)) | S25: ((Icon))
C26: =INDEX(Données!$D25:$N25,1,Données!$A$58) -> -130 | G26: =INDEX(Données!$D27:$N27,1,Données!$A$58) -> -190 | K26: =INDEX(Données!$D29:$N29,1,Données!$A$58) -> -300 | O26: =INDEX(Données!$D31:$N31,1,Données!$A$58) -> -150 | S26: =INDEX(Données!$D33:$N33,1,Données!$A$58) -> -440
C28: =INDEX(Données!$D25:$N25,1,Données!$A$59) -> -200 | G28: =INDEX(Données!$D27:$N27,1,Données!$A$59) -> -350 | K28: =INDEX(Données!$D29:$N29,1,Données!$A$59) -> -570 | O28: =INDEX(Données!$D31:$N31,1,Données!$A$59) -> -190 | S28: =INDEX(Données!$D33:$N33,1,Données!$A$59) -> -760

Sheet Données (hidden)
A1: 9 | E1: 1 | F1: 2 | G1: 3 | H1: 4 | I1: 5 | J1: 6 | K1: 7 | L1: 8 | M1: 9 | N1: 10
B2: Groupe de population | E2: 1 Personne seule, revenus faibles | F2: 2 Personne seule, revenus moyens | G2: 3 Personne seule, revenus élevés | H2: 4 Couple sans enfant, revenus faibles | I2: 5 Couple sans enfant, revenus moyens | J2: 6 Personne seule avec enfants | K2: 7 Couple de retraités sans enfant, revenus moyens issus de rentes | L2: 8 Couple avec deux enfants, revenus faibles | M2: 9 Couple avec deux enfants, revenus moyens | N2: 10 Couple avec deux enfants, revenus élevés
A4: A | B4: Revenus primaires | E4: 1080 | F4: 5960 | G4: 12070 | H4: 4550 | I4: 11010 | J4: 6020 | K4: 950 | L4: 5670 | M4: 11070 | N4: 23840
A6: B | B6: Rentes et prestations sociales | E6: 1450 | F6: 420 | G6: 380 | H6: 1170 | I6: 530 | J6: 1220 | K6: 6220 | L6: 970 | M6: 880 | N6: 720
A8: C | B8: Revenus sporadiques, de transfert | E8: 380 | F8: 200 | G8: 470 | H8: 310 | I8: 370 | J8: 1320 | K8: 400 | L8: 280 | M8: 510 | N8: 740
A10: D | B10: Cotisations aux assurances sociales | E10: -130 | F10: -760 | G10: -1600 | H10: -550 | I10: -1360 | J10: -760 | K10: -40 | L10: -680 | M10: -1410 | N10: -2930
A12: E | B12: Revenus disponibles | E12: =SUM(E4:E10) -> 2780 | F12: =SUM(F4:F10) -> 5820 | G12: 11320 | H12: 5480 | I12: 10550 | J12: =SUM(J4:J10) -> 7800 | K12: 7530 | L12: 6240 | M12: 11050 | N12: 22370
A15: 1 | B15: Impôts | E15: -290 | F15: -640 | G15: -1770 | H15: -820 | I15: -1300 | J15: -590 | K15: -1070 | L15: -470 | M15: -1000 | N15: -3460
A17: 2 | B17: Santé | E17: -520 | F17: -490 | G17: -640 | H17: -920 | I17: -940 | J17: -950 | K17: -1490 | L17: -1090 | M17: -1260 | N17: -1540
A19: 3 | B19: Assistance et cadeaux | E19: -130 | F19: -290 | G19: -1120 | H19: -190 | I19: -250 | J19: -290 | K19: -400 | L19: -110 | M19: -240 | N19: -590
A21: 4 | B21: Logement | E21: -1040 | F21: -1240 | G21: -1680 | H21: -1370 | I21: -1620 | J21: -1590 | K21: -1180 | L21: -1410 | M21: -1530 | N21: -2350
A23: 5 | B23: Alimentation | E23: -320 | F23: -340 | G23: -390 | H23: -540 | I23: -620 | J23: -640 | K23: -750 | L23: -720 | M23: -910 | N23: -1110
A25: 6 | B25: Habillement et soins corporels | E25: -130 | F25: -200 | G25: -310 | H25: -260 | I25: -380 | J25: -380 | K25: -300 | L25: -320 | M25: -500 | N25: -860
A27: 7 | B27: Ménage et assurance vie | E27: -190 | F27: -350 | G27: -790 | H27: -450 | I27: -810 | J27: -440 | K27: -350 | L27: -440 | M27: -890 | N27: -1610
A29: 8 | B29: Mobilité | E29: -300 | F29: -570 | G29: -870 | H29: -740 | I29: -1160 | J29: -670 | K29: -760 | L29: -770 | M29: -1210 | N29: -1800
A31: 9 | B31: Communication et appareils électroniques | E31: -150 | F31: -190 | G31: -240 | H31: -230 | I31: -280 | J31: -290 | K31: -200 | L31: -260 | M31: -310 | N31: -400
A33: 10 | B33: Loisirs et formation | E33: -440 | F33: -760 | G33: -1290 | H33: -880 | I33: -1360 | J33: -1080 | K33: -1220 | L33: -830 | M33: -1570 | N33: -3380
A36: F | B36: Epargne/Dette | E36: =SUM(E12:E33) -> -730 | F36: =SUM(F12:F33) -> 750 | G36: 2220 | H36: -920 | I36: 1830 | J36: 880 | K36: -190 | L36: =SUM(L12:L33) -> -180 | M36: 1630 | N36: 5270
A38: X1 | B38: Personne seule / couple | E38: Personne seule | F38: Personne seule | G38: Personne seule | H38: Couple | I38: Couple | J38: Personne seule | K38: Couple | L38: Couple | M38: Couple | N38: Couple
A39: X2 | B39: Enfants | E39: Non | F39: Non | G39: Non | H39: Non | I39: Non | J39: Oui | K39: Non | L39: Oui | M39: Oui | N39: Oui
A40: X3 | B40: Âge | E40: Moins de 65 ans | F40: Moins de 65 ans | G40: Moins de 65 ans | H40: - | I40: 65 ans et + | J40: - | K40: 65 ans et + | L40: - | M40: - | N40: -
A41: X4 | B41: Revenus | E41: Revenus faibles | F41: Revenus moyens | G41: Revenus supérieurs | H41: Revenus faibles | I41: Revenus moyens | J41: Revenus moyens (60 pour cent) | K41: Revenus moyens | L41: Revenus faibles | M41: Revenus moyens | N41: Revenus supérieurs
B44: =E2 -> 1 Personne seule, revenus faibles
B45: =F2 -> 2 Personne seule, revenus moyens
B46: =G2 -> 3 Personne seule, revenus élevés
B47: =H2 -> 4 Couple sans enfant, revenus faibles
B48: =I2 -> 5 Couple sans enfant, revenus moyens
B49: =J2 -> 6 Personne seule avec enfants
B50: =K2 -> 7 Couple de retraités sans enfant, revenus moyens issus de rentes
B51: =L2 -> 8 Couple avec deux enfants, revenus faibles
B52: =M2 -> 9 Couple avec deux enfants, revenus moyens
B53: =N2 -> 10 Couple avec deux enfants, revenus élevés
A56: 1 | B56: Cell Lien vers Budget mensuel des ménages
A58: 2 | B58: Cell Lien vers Types de ménages Comparaison 1
A59: 3 | B59: Cell Lien vers Types de ménages Comparaison 1

Sheet Budget mensuel ménage_p
D3: Proposition
D4: Elève
A7: Recettes | C7: =Données!$B$12 -> Revenus disponibles
B8: =Données!$A13 -> 0
B9: =Données!$A9 -> 0
A10: Dépenses | B10: =Données!$A15 -> 1 | C10: =Données!$B15 -> Impôts | E10: =IF($D$7,SUM(D10)/$D$7,0) -> 0 | F10: =ABS(#REF!-E10) ->  | G10: Impôts fédéraux, cantonaux et communaux, taxes officielles
B11: =Données!$A16 -> 0 | C11: =Données!$B16 -> 0
B12: =Données!$A17 -> 2 | C12: =Données!$B17 -> Santé | E12: =IF($D$7,SUM(D12)/$D$7,0) -> 0 | F12: =ABS(#REF!-E12) ->  | G12: Primes d’assurances, consultations médicales, médicaments
B13: =Données!$A18 -> 0 | C13: =Données!$B18 -> 0
B14: =Données!$A19 -> 3 | C14: =Données!$B19 -> Assistance et cadeaux | E14: =IF($D$7,SUM(D14)/$D$7,0) -> 0 | F14: =ABS(#REF!-E14) ->  | G14: Cadeaux, dons, pensions alimentaires, contributions de soutien
B15: =Données!$A20 -> 0 | C15: =Données!$B20 -> 0
B16: =Données!$A21 -> 4 | C16: =Données!$B21 -> Logement | E16: =IF($D$7,SUM(D16)/$D$7,0) -> 0 | F16: =ABS(#REF!-E16) ->  | G16: Logement, énergie
B17: =Données!$A22 -> 0 | C17: =Données!$B22 -> 0
B18: =Données!$A23 -> 5 | C18: =Données!$B23 -> Alimentation | E18: =IF($D$7,SUM(D18)/$D$7,0) -> 0 | F18: =ABS(#REF!-E18) ->  | G18: Nourriture, boissons
B19: =Données!$A24 -> 0 | C19: =Données!$B24 -> 0
B20: =Données!$A25 -> 6 | C20: =Données!$B25 -> Habillement et soins corporels | E20: =IF($D$7,SUM(D20)/$D$7,0) -> 0 | F20: =ABS(#REF!-E20) ->  | G20: Vêtements, chaussures, produits d’hygiène, coiffeur
B21: =Données!$A26 -> 0 | C21: =Données!$B26 -> 0
B22: =Données!$A27 -> 7 | C22: =Données!$B27 -> Ménage et assurance vie | E22: =IF($D$7,SUM(D22)/$D$7,0) -> 0 | F22: =ABS(#REF!-E22) ->  | G22: Mobilier, équipement du ménage, assurances
B23: =Données!$A28 -> 0 | C23: =Données!$B28 -> 0
B24: =Données!$A29 -> 8 | C24: =Données!$B29 -> Mobilité | E24: =IF($D$7,SUM(D24)/$D$7,0) -> 0 | F24: =ABS(#REF!-E24) ->  | G24: Transports privés et transports en commun
B25: =Données!$A30 -> 0 | C25: =Données!$B30 -> 0
B26: =Données!$A31 -> 9 | C26: =Données!$B31 -> Communication et appareils électroniques | E26: =IF($D$7,SUM(D26)/$D$7,0) -> 0 | F26: =ABS(#REF!-E26) ->  | G26: Téléphonie, Internet, TV, ordinateur
B27: =Données!$A32 -> 0 | C27: =Données!$B32 -> 0
B28: =Données!$A33 -> 10 | C28: =Données!$B33 -> Loisirs et formation | E28: =IF($D$7,SUM(D28)/$D$7,0) -> 0 | F28: =ABS(#REF!-E28) ->  | G28: Sorties, vacances, hobbys, formation
B29: =Données!$A34 -> 0
B30: =Données!$A35 -> 0
A31: Montant restant | C31: Epargne/Dette | D31: =D7-SUM(D10:D28) -> 0 | E31: =IF($D$7,SUM(D31)/$D$7,0) -> 0 | F31: =ABS(#REF!-E31) -> 

Sheet Comparaison budget ménages_p
D1: 1 | E1: 2 | F1: 3 | G1: 4 | H1: 5 | I1: 6 | J1: 7 | K1: 8 | L1: 9 | M1: 10
D2: Personne seule, revenus faibles | E2: Personne seule, revenus moyens | F2: Personne seule, revenus élevés | G2: Couple sans enfant, revenus faibles | H2: Couple sans enfant, revenus moyens | I2: Personne seule avec enfants | J2: Couple de ratraités sans enfant, revenus moyens issus de rentes | K2: Couple avec deux enfants, revenus faibles | L2: Couple avec deux enfants, revenus moyens | M2: Couple avec deux enfants, revenus élevés
B4: Revenu primaire | D4: =Données!E4 -> 1080 | E4: =Données!F4 -> 5960 | F4: =Données!G4 -> 12070 | G4: =Données!H4 -> 4550 | H4: =Données!I4 -> 11010 | I4: =Données!J4 -> 6020 | J4: =Données!K4 -> 950 | K4: =Données!L4 -> 5670 | L4: =Données!M4 -> 11070 | M4: =Données!N4 -> 23840
D5: =Données!E5 -> 0
B6: Rentes et prestations sociales | D6: =Données!E6 -> 1450 | E6: =Données!F6 -> 420 | F6: =Données!G6 -> 380 | G6: =Données!H6 -> 1170 | H6: =Données!I6 -> 530 | I6: =Données!J6 -> 1220 | J6: =Données!K6 -> 6220 | K6: =Données!L6 -> 970 | L6: =Données!M6 -> 880 | M6: =Données!N6 -> 720
D7: =Données!E7 -> 0
B8: Revenus de transfert, sporadiques | D8: =Données!E8 -> 380 | E8: =Données!F8 -> 200 | F8: =Données!G8 -> 470 | G8: =Données!H8 -> 310 | H8: =Données!I8 -> 370 | I8: =Données!J8 -> 1320 | J8: =Données!K8 -> 400 | K8: =Données!L8 -> 280 | L8: =Données!M8 -> 510 | M8: =Données!N8 -> 740
D9: =Données!E9 -> 0
B10: Cotisations aux assurances sociales | D10: =Données!E10 -> -130 | E10: =Données!F10 -> -760 | F10: =Données!G10 -> -1600 | G10: =Données!H10 -> -550 | H10: =Données!I10 -> -1360 | I10: =Données!J10 -> -760 | J10: =Données!K10 -> -40 | K10: =Données!L10 -> -680 | L10: =Données!M10 -> -1410 | M10: =Données!N10 -> -2930
B12: Revenus disponibles | D12: =Données!E12 -> 2780 | E12: =Données!F12 -> 5820 | F12: =Données!G12 -> 11320 | G12: =Données!H12 -> 5480 | H12: =Données!I12 -> 10550 | I12: =Données!J12 -> 7800 | J12: =Données!K12 -> 7530 | K12: =Données!L12 -> 6240 | L12: =Données!M12 -> 11050 | M12: =Données!N12 -> 22370
A15: 1 | B15: Impôts | D15: =Données!E15 -> -290 | E15: =Données!F15 -> -640 | F15: =Données!G15 -> -1770 | G15: =Données!H15 -> -820 | H15: =Données!I15 -> -1300 | I15: =Données!J15 -> -590 | J15: =Données!K15 -> -1070 | K15: =Données!L15 -> -470 | L15: =Données!M15 -> -1000 | M15: =Données!N15 -> -3460
D16: =Données!E16 -> 0 | E16: =Données!F16 -> 0 | F16: =Données!G16 -> 0 | G16: =Données!H16 -> 0 | H16: =Données!I16 -> 0 | I16: =Données!J16 -> 0 | J16: =Données!K16 -> 0 | K16: =Données!L16 -> 0 | L16: =Données!M16 -> 0 | M16: =Données!N16 -> 0
A17: 2 | B17: Santé | D17: =Données!E17 -> -520 | E17: =Données!F17 -> -490 | F17: =Données!G17 -> -640 | G17: =Données!H17 -> -920 | H17: =Données!I17 -> -940 | I17: =Données!J17 -> -950 | J17: =Données!K17 -> -1490 | K17: =Données!L17 -> -1090 | L17: =Données!M17 -> -1260 | M17: =Données!N17 -> -1540
D18: =Données!E18 -> 0 | E18: =Données!F18 -> 0 | F18: =Données!G18 -> 0 | G18: =Données!H18 -> 0 | H18: =Données!I18 -> 0 | I18: =Données!J18 -> 0 | J18: =Données!K18 -> 0 | K18: =Données!L18 -> 0 | L18: =Données!M18 -> 0 | M18: =Données!N18 -> 0
A19: 3 | B19: Assistance et cadeaux | D19: =Données!E19 -> -130 | E19: =Données!F19 -> -290 | F19: =Données!G19 -> -1120 | G19: =Données!H19 -> -190 | H19: =Données!I19 -> -250 | I19: =Données!J19 -> -290 | J19: =Données!K19 -> -400 | K19: =Données!L19 -> -110 | L19: =Données!M19 -> -240 | M19: =Données!N19 -> -590
D20: =Données!E20 -> 0 | E20: =Données!F20 -> 0 | F20: =Données!G20 -> 0 | G20: =Données!H20 -> 0 | H20: =Données!I20 -> 0 | I20: =Données!J20 -> 0 | J20: =Données!K20 -> 0 | K20: =Données!L20 -> 0 | L20: =Données!M20 -> 0 | M20: =Données!N20 -> 0
A21: 4 | B21: Logement | D21: =Données!E21 -> -1040 | E21: =Données!F21 -> -1240 | F21: =Données!G21 -> -1680 | G21: =Données!H21 -> -1370 | H21: =Données!I21 -> -1620 | I21: =Données!J21 -> -1590 | J21: =Données!K21 -> -1180 | K21: =Données!L21 -> -1410 | L21: =Données!M21 -> -1530 | M21: =Données!N21 -> -2350
D22: =Données!E22 -> 0 | E22: =Données!F22 -> 0 | F22: =Données!G22 -> 0 | G22: =Données!H22 -> 0 | H22: =Données!I22 -> 0 | I22: =Données!J22 -> 0 | J22: =Données!K22 -> 0 | K22: =Données!L22 -> 0 | L22: =Données!M22 -> 0 | M22: =Données!N22 -> 0
A23: 5 | B23: Alimentation | D23: =Données!E23 -> -320 | E23: =Données!F23 -> -340 | F23: =Données!G23 -> -390 | G23: =Données!H23 -> -540 | H23: =Données!I23 -> -620 | I23: =Données!J23 -> -640 | J23: =Données!K23 -> -750 | K23: =Données!L23 -> -720 | L23: =Données!M23 -> -910 | M23: =Données!N23 -> -1110
D24: =Données!E24 -> 0 | E24: =Données!F24 -> 0 | F24: =Données!G24 -> 0 | G24: =Données!H24 -> 0 | H24: =Données!I24 -> 0 | I24: =Données!J24 -> 0 | J24: =Données!K24 -> 0 | K24: =Données!L24 -> 0 | L24: =Données!M24 -> 0 | M24: =Données!N24 -> 0
A25: 6 | B25: Habillement et soins corporels | D25: =Données!E25 -> -130 | E25: =Données!F25 -> -200 | F25: =Données!G25 -> -310 | G25: =Données!H25 -> -260 | H25: =Données!I25 -> -380 | I25: =Données!J25 -> -380 | J25: =Données!K25 -> -300 | K25: =Données!L25 -> -320 | L25: =Données!M25 -> -500 | M25: =Données!N25 -> -860
D26: =Données!E26 -> 0 | E26: =Données!F26 -> 0 | F26: =Données!G26 -> 0 | G26: =Données!H26 -> 0 | H26: =Données!I26 -> 0 | I26: =Données!J26 -> 0 | J26: =Données!K26 -> 0 | K26: =Données!L26 -> 0 | L26: =Données!M26 -> 0 | M26: =Données!N26 -> 0
A27: 7 | B27: Ménage et assurance vie | D27: =Données!E27 -> -190 | E27: =Données!F27 -> -350 | F27: =Données!G27 -> -790 | G27: =Données!H27 -> -450 | H27: =Données!I27 -> -810 | I27: =Données!J27 -> -440 | J27: =Données!K27 -> -350 | K27: =Données!L27 -> -440 | L27: =Données!M27 -> -890 | M27: =Données!N27 -> -1610
D28: =Données!E28 -> 0 | E28: =Données!F28 -> 0 | F28: =Données!G28 -> 0 | G28: =Données!H28 -> 0 | H28: =Données!I28 -> 0 | I28: =Données!J28 -> 0 | J28: =Données!K28 -> 0 | K28: =Données!L28 -> 0 | L28: =Données!M28 -> 0 | M28: =Données!N28 -> 0
A29: 8 | B29: Mobilité | D29: =Données!E29 -> -300 | E29: =Données!F29 -> -570 | F29: =Données!G29 -> -870 | G29: =Données!H29 -> -740 | H29: =Données!I29 -> -1160 | I29: =Données!J29 -> -670 | J29: =Données!K29 -> -760 | K29: =Données!L29 -> -770 | L29: =Données!M29 -> -1210 | M29: =Données!N29 -> -1800
D30: =Données!E30 -> 0 | E30: =Données!F30 -> 0 | F30: =Données!G30 -> 0 | G30: =Données!H30 -> 0 | H30: =Données!I30 -> 0 | I30: =Données!J30 -> 0 | J30: =Données!K30 -> 0 | K30: =Données!L30 -> 0 | L30: =Données!M30 -> 0 | M30: =Données!N30 -> 0
A31: 9 | B31: Communication et appareils électroniques | D31: =Données!E31 -> -150 | E31: =Données!F31 -> -190 | F31: =Données!G31 -> -240 | G31: =Données!H31 -> -230 | H31: =Données!I31 -> -280 | I31: =Données!J31 -> -290 | J31: =Données!K31 -> -200 | K31: =Données!L31 -> -260 | L31: =Données!M31 -> -310 | M31: =Données!N31 -> -400
D32: =Données!E32 -> 0 | E32: =Données!F32 -> 0 | F32: =Données!G32 -> 0 | G32: =Données!H32 -> 0 | H32: =Données!I32 -> 0 | I32: =Données!J32 -> 0 | J32: =Données!K32 -> 0 | K32: =Données!L32 -> 0 | L32: =Données!M32 -> 0 | M32: =Données!N32 -> 0
A33: 10 | B33: Loisirs et formation | D33: =Données!E33 -> -440 | E33: =Données!F33 -> -760 | F33: =Données!G33 -> -1290 | G33: =Données!H33 -> -880 | H33: =Données!I33 -> -1360 | I33: =Données!J33 -> -1080 | J33: =Données!K33 -> -1220 | K33: =Données!L33 -> -830 | L33: =Données!M33 -> -1570 | M33: =Données!N33 -> -3380
B36: Montant restant | D36: =Données!E36 -> -730 | E36: =Données!F36 -> 750 | F36: =Données!G36 -> 2220 | G36: =Données!H36 -> -920 | H36: =Données!I36 -> 1830 | I36: =Données!J36 -> 880 | J36: =Données!K36 -> -190 | K36: =Données!L36 -> -180 | L36: =Données!M36 -> 1630 | M36: =Données!N36 -> 5270
